bitfinex-derivatives/quotes_SOLF0:USTF0_20250829
["timestamp","ask_amount","ask_price","bid_price","bid_amount"]
[1756453317298,7.53,209.66,209.53,132.0]
[1756453317793,185.57735481,209.73,209.56,7.5]
[1756453317999,7.53,209.72,209.61,7.5]
[1756453318292,7.53,209.72,209.61,60.72]
[1756453318901,185.57735481,209.73,209.61,60.72]
[1756453319192,7.53,209.83,209.65,7.5]
[1756453319396,7.53,209.83,209.69,7.5]
[1756453319588,4.2892,209.8,209.69,30.48]
[1756453319794,4.2892,209.8,209.69,47.62]
[1756453319991,66.7208,209.8,209.55,11.74116884]
[1756453320194,7.53,209.79,209.66,7.5]
[1756453320486,78.44306884,209.86,209.69,11.74116884]
[1756453320487,7.53,209.85,209.69,11.74116884]
[1756453320692,7.53,209.85,209.7,7.5]
[1756453320888,7.53,209.82,209.7,7.5]
[1756453321092,7.53,209.8,209.69,11.74116884]
[1756453321288,66.733,209.76,209.63,11.74116884]
[1756453321488,7.53,209.75,209.63,11.74116884]
[1756453321698,4.2905,209.74,209.63,11.74116884]
[1756453322292,4.2905,209.74,209.6,25.08116884]
[1756453322999,4.2908,209.72,209.6,25.08116884]
[1756453323202,7.53,209.75,209.6,25.08116884]
[1756453323398,7.53,209.75,209.6,11.74116884]
[1756453323599,4.2906,209.73,209.6,42.14116884]
[1756453323898,7.53,209.72,209.59,54.66]
[1756453325094,11.74116884,209.78,209.59,54.66]
[1756453325095,7.53,209.79,209.65,7.5]
[1756453325901,7.53,209.79,209.66,35.68]
[1756453326099,7.53,209.79,209.66,52.64]
[1756453326607,4.2895,209.78,209.65,76.26]
[1756453326899,4.2895,209.78,209.65,7.5]
[1756453327101,4.29,209.76,209.65,7.5]
[1756453327899,11.8194,209.79,209.65,7.5]
[1756453328295,74.2724,209.89,209.71,7.31]
[1756453328703,74.2724,209.89,209.74,11.74116884]
[1756453328895,11.8674,209.89,209.74,11.74116884]
[1756453330397,11.8674,209.89,209.75,7.31]
[1756453331501,7.58,209.89,209.75,7.31]
[1756453332906,11.8674,209.89,209.75,7.31]
[1756453333696,66.7012,209.86,209.74,19.4794306]
[1756453333899,7.58,209.82,209.7,26.7894306]
[1756453335205,66.6987,209.87,209.7,26.7894306]
[1756453335404,4.2883,209.84,209.7,26.7894306]
[1756453336703,4.2887,209.82,209.7,26.7894306]
[1756453338108,7.58,209.81,209.7,26.7894306]
[1756453339404,74.3424,209.67,209.54,7.31]
[1756453339804,7.58,209.67,209.54,7.31]
[1756453340409,4.292,209.66,209.54,7.31]
[1756453340803,66.765,209.66,209.52,19.4794306]
[1756453341002,14.07342653,209.65,209.49,7.31]
[1756453341204,7.58,209.65,209.49,7.31]
[1756453343207,4.2924,209.64,209.49,7.31]
[1756453343407,66.7655,209.66,209.49,7.31]
[1756453343408,7.58,209.63,209.49,7.31]
[1756453345909,4.2928,209.62,209.49,7.31]
[1756453346106,7.58,209.6,209.47,19.4794306]
[1756453348014,7.58,209.6,209.48,7.31]
[1756453348517,11.8733,209.6,209.48,7.31]
[1756453350413,7.58,209.6,209.48,7.31]
[1756453351319,7.58,209.6,209.49,11.68490462]
[1756453353119,7.58,209.6,209.48,7.31]
[1756453354215,4.2936,209.59,209.48,7.31]
[1756453354619,7.58,209.6,209.48,7.31]
[1756453354820,4.2939,209.57,209.48,7.31]
[1756453355521,7.58,209.56,209.48,7.31]
[1756453356129,7.58,209.55,209.42,7.31]
[1756453356623,7.58,209.55,209.38,131.84]
[1756453356624,7.71,209.5,209.37,11.68490462]
[1756453357915,4.2957,209.48,209.37,11.68490462]
[1756453358119,4.2957,209.48,209.36,19.52490462]
[1756453358315,74.5267,209.5,209.36,19.52490462]
[1756453358620,7.71,209.47,209.36,7.84]
[1756453359016,4.2963,209.45,209.36,7.84]
[1756453359624,4.2974,209.4,209.28,133.88319157]
[1756453360025,7.71,209.4,209.28,133.88319157]
[1756453360224,4.2978,209.38,209.28,133.88319157]
[1756453360521,7.71,209.38,209.24,143.52490462]
[1756453361121,4.298,209.37,209.24,143.52490462]
[1756453361328,4.298,209.37,209.24,131.84]
[1756453362227,7.71,209.38,209.23,7.84]
[1756453363325,7.71,209.46,209.28,7.84]
[1756453363532,7.71,209.55,209.38,7.84]
[1756453363726,7.71,209.55,209.39,7.84]
[1756453363930,7.71,209.55,209.43,7.84]
[1756453364127,183.94176631,209.6,209.43,7.84]
[1756453364330,179.64836631,209.6,209.43,7.84]
[1756453365134,4.2937,209.58,209.43,7.84]
[1756453366340,4.2937,209.58,209.44,62.0]
[1756453366741,4.2937,209.58,209.43,7.84]
[1756453366742,4.2937,209.58,209.43,89.04]
[1756453366944,74.5141,209.54,209.43,7.84]
[1756453367130,66.8107,209.52,209.37,126.84019833]
[1756453367336,66.8164,209.5,209.38,26.04]
[1756453367536,74.5264,209.5,209.38,26.04]
[1756453367740,4.2958,209.48,209.38,26.04]
[1756453367940,66.8194,209.49,209.38,26.04]
[1756453369238,7.71,209.5,209.38,26.04]
[1756453369443,74.5079,209.56,209.39,7.84]
[1756453369637,74.5079,209.56,209.4,62.0]
[1756453370034,74.5079,209.56,209.39,7.84]
[1756453370240,4.295,209.52,209.39,7.84]
[1756453370444,66.8108,209.52,209.39,7.84]
[1756453371342,4.2958,209.48,209.39,7.84]
[1756453372246,4.2952,209.51,209.39,7.84]
[1756453374045,4.2955,209.49,209.39,7.84]
[1756453376549,12.005,209.52,209.39,7.84]
[1756453377740,7.71,209.52,209.39,7.84]
[1756453378047,4.2953,209.5,209.39,7.84]
[1756453380546,4.2958,209.48,209.39,7.84]
[1756453383049,74.5339,209.48,209.34,7.84]
[1756453384152,4.296,209.47,209.34,7.84]
[1756453384460,7.71,209.42,209.3,19.53943498]
[1756453385158,66.8455,209.41,209.3,7.84]
[1756453385351,7.71,209.4,209.3,7.84]
[1756453385553,4.2977,209.38,209.3,7.84]
[1756453386257,7.71,209.4,209.25,7.84]
[1756453386750,4.2979,209.37,209.25,7.84]
[1756453388155,7.71,209.4,209.25,7.84]
[1756453388156,4.2975,209.39,209.25,7.84]
[1756453389454,7.72,209.47,209.29,7.59]
[1756453390653,66.8325,209.45,209.29,7.59]
[1756453391049,4.2967,209.43,209.29,7.59]
[1756453393649,4.2971,209.42,209.29,7.59]
[1756453395660,7.72,209.44,209.29,7.59]
[1756453395856,66.7971,209.56,209.37,7.59]
[1756453396060,7.72,209.55,209.41,7.59]
[1756453396360,7.72,209.55,209.41,29.29]
[1756453397067,187.36836631,209.6,209.45,7.59]
[1756453397464,191.66176631,209.6,209.45,7.59]
[1756453400469,187.36836631,209.6,209.45,7.59]
[1756453401165,4.2936,209.59,209.45,7.59]
[1756453403272,66.8007,209.55,209.45,7.59]
[1756453403474,74.5179,209.56,209.45,7.59]
[1756453403767,7.72,209.55,209.4,19.28943498]
[1756453404075,4.2947,209.53,209.4,19.28943498]
[1756453405573,4.2951,209.51,209.4,40.16943498]
[1756453405877,4.2951,209.51,209.4,7.59]
[1756453407372,4.2955,209.49,209.4,7.59]
[1756453412481,12.0155,209.49,209.4,7.59]
[1756453419987,4.2957,209.47,209.4,7.59]
[1756453423291,11.5361,209.46,209.35,7.44]
[1756453424688,4.2963,209.44,209.35,7.44]
[1756453428685,11.5359,209.46,209.35,7.44]
[1756453429290,11.5359,209.46,209.38,7.60460405]
[1756453429693,11.5359,209.46,209.35,7.44]
[1756453429891,11.5359,209.46,209.37,7.60460405]
[1756453430098,4.2963,209.45,209.37,7.60460405]
[1756453433098,7.24,209.46,209.38,7.44]
[1756453434197,7.24,209.46,209.31,44.06]
[1756453434198,7.24,209.53,209.41,7.44]
[1756453434798,7.24,209.49,209.41,7.44]
[1756453435301,4.2955,209.48,209.41,7.44]
[1756453437000,7.24,209.49,209.41,7.44]
[1756453437201,7.24,209.58,209.47,7.44]
[1756453437401,7.24,209.58,209.52,7.60460405]
[1756453437604,7.24,209.58,209.5,7.44]
[1756453437800,66.7724,209.63,209.52,7.60460405]
[1756453437998,7.24,209.62,209.52,7.60460405]
[1756453438699,4.2934,209.59,209.52,7.60460405]
[1756453439199,7.24,209.58,209.52,7.60460405]
[1756453440305,4.2936,209.57,209.52,7.60460405]
[1756453440503,7.24,209.58,209.52,15.04460405]
[1756453441803,7.24,209.58,209.45,7.8599109]
[1756453442101,7.24,209.58,209.5,7.60460405]
[1756453443501,4.2933,209.59,209.51,7.44]
[1756453444297,4.2937,209.57,209.51,7.44]
[1756453444701,4.2937,209.57,209.5,7.60460405]
[1756453444702,66.789,209.58,209.48,7.60460405]
[1756453445006,7.24,209.57,209.48,7.60460405]
[1756453445202,7.24,209.54,209.44,7.60460405]
[1756453446806,7.18,209.5,209.41,7.60460405]
[1756453449011,73.9927,209.5,209.41,7.60460405]
[1756453450314,7.18,209.54,209.44,7.60460405]
[1756453450812,7.18,209.49,209.38,328.36460405]
[1756453451114,7.18,209.48,209.38,328.36460405]
[1756453452107,7.18,209.47,209.38,328.36460405]
[1756453452908,7.18,209.47,209.38,320.76]
[1756453453810,4.2961,209.45,209.38,320.76]
[1756453454605,7.18,209.47,209.38,320.76]
[1756453455110,7.18,209.47,209.38,328.36460405]
[1756453455609,4.2959,209.46,209.38,328.36460405]
[1756453457314,7.18,209.47,209.39,7.86]
[1756453458115,11.4757,209.47,209.39,7.86]
[1756453459009,4.2961,209.45,209.39,7.86]
[1756453459210,66.8251,209.46,209.4,130.48]
[1756453460510,4.2965,209.43,209.4,130.48]
[1756453460716,4.2965,209.43,209.4,138.34]
[1756453461114,66.8409,209.41,209.34,7.86]
[1756453461314,66.8409,209.41,209.31,7.60460405]
[1756453461315,66.845,209.4,209.31,7.60460405]
[1756453461515,7.18,209.38,209.29,7.86]
[1756453461706,7.18,209.38,209.3,130.42]
[1756453462315,66.8473,209.39,209.3,130.42]
[1756453462512,7.18,209.42,209.3,130.42]
[1756453463815,4.2974,209.39,209.31,15.46460405]
[1756453464026,7.18,209.42,209.31,7.86]
[1756453464318,74.0184,209.42,209.31,7.86]
[1756453465218,4.2975,209.38,209.31,7.86]
[1756453466620,11.4775,209.38,209.31,138.2]
[1756453467520,4.297,209.41,209.31,138.2]
[1756453467721,4.297,209.41,209.31,145.80460405]
[1756453468121,4.2973,209.39,209.31,145.80460405]
[1756453469418,74.0182,209.42,209.27,320.72]
[1756453469419,4.2983,209.34,209.27,320.72]
[1756453469612,4.2983,209.34,209.28,130.28]
[1756453469817,4.2983,209.34,209.26,7.86]
[1756453469818,7.18,209.33,209.26,7.86]
[1756453470012,7.18,209.33,209.26,138.12]
[1756453470318,7.18,209.33,209.26,130.26]
[1756453470720,4.2991,209.3,209.26,130.26]
[1756453470919,7.18,209.33,209.26,138.12]
[1756453471619,66.8702,209.32,209.26,130.26]
[1756453472223,4.2994,209.29,209.26,130.26]
[1756453472424,74.0565,209.3,209.24,130.22]
[1756453473725,4.2998,209.27,209.24,130.22]
[1756453474221,7.18,209.3,209.21,7.86]
[1756453474423,4.3002,209.25,209.22,7.86]
[1756453474825,4.3002,209.25,209.16,7.60460405]
[1756453475025,4.3002,209.25,209.17,130.18]
[1756453475226,4.3006,209.23,209.17,130.18]
[1756453475425,4.3006,209.23,209.16,15.46460405]
[1756453475624,74.0663,209.27,209.16,15.46460405]
[1756453475625,66.8955,209.24,209.16,7.86]
[1756453475827,4.3014,209.19,209.17,130.16]
[1756453476826,4.301,209.22,209.17,130.16]
[1756453477028,11.831,209.22,209.17,130.16]
[1756453477222,7.53,209.22,209.17,130.16]
[1756453477623,7.53,209.28,209.18,7.51]
[1756453478025,4.2987,209.33,209.23,7.51]
[1756453478225,7.53,209.36,209.25,15.11460405]
[1756453478428,7.53,209.36,209.27,7.51]
[1756453479423,66.8665,209.33,209.26,130.12]
[1756453480025,11.829,209.31,209.26,130.12]
[1756453480232,7.53,209.36,209.26,137.63]
[1756453480431,7.53,209.36,209.27,130.08]
[1756453480432,4.2982,209.35,209.27,130.08]
[1756453480731,7.53,209.36,209.27,130.08]
[1756453480920,74.3877,209.36,209.26,7.51]
[1756453481120,74.3877,209.36,209.26,23.81]
[1756453481526,4.2986,209.33,209.26,23.81]
[1756453481728,74.401,209.32,209.19,7.60460405]
[1756453481932,74.401,209.32,209.2,98.47]
[1756453482226,66.8768,209.3,209.2,7.51]
[1756453482432,7.53,209.3,209.2,106.55]
[1756453482932,7.60460405,209.35,209.23,7.51]
[1756453482933,7.53,209.35,209.23,7.51]
[1756453483633,66.8577,209.36,209.22,7.60460405]
[1756453483634,66.8763,209.3,209.22,99.64]
[1756453483831,7.53,209.29,209.19,7.51]
[1756453484032,74.4197,209.26,209.15,90.4]
[1756453484424,66.8954,209.24,209.14,7.51]
[1756453484635,7.53,209.21,209.14,130.0]
[1756453485029,66.9087,209.2,209.09,137.51]
[1756453485224,4.3018,209.17,209.09,137.51]
[1756453486135,4.3014,209.2,209.1,130.0]
[1756453486837,4.3014,209.2,209.12,7.51]
[1756453487033,4.3017,209.18,209.12,7.51]
[1756453490137,11.8312,209.21,209.12,7.51]
[1756453491038,4.3,209.27,209.15,7.51]
[1756453491229,66.8999,209.23,209.15,7.51]
[1756453491429,66.9062,209.21,209.1,15.11460405]
[1756453491828,4.302,209.17,209.1,7.51]
[1756453492234,4.302,209.17,209.08,7.60460405]
[1756453492537,4.302,209.17,209.08,137.48460405]
[1756453492731,4.3023,209.15,209.08,7.60460405]
[1756453492937,11.8323,209.15,209.07,129.88]
[1756453493329,11.8323,209.15,209.06,7.51]
[1756453493330,7.53,209.15,209.06,7.51]
[1756453493535,7.53,209.15,209.07,129.86]
[1756453494335,4.3025,209.14,209.06,7.51]
[1756453497539,7.53,209.15,209.06,7.51]
[1756453497540,4.3029,209.12,209.06,7.51]
[1756453498739,7.53,209.15,209.06,7.51]
[1756453499036,7.53,209.2,209.06,15.11460405]
[1756453499242,7.53,209.2,209.08,7.60460405]
[1756453499442,74.4492,209.17,209.06,7.51]
[1756453500043,4.3029,209.12,209.06,7.51]
[1756453500241,4.3029,209.12,208.99,7.51]
[1756453500540,66.9381,209.11,209.02,7.51]
[1756453500839,7.53,209.12,209.02,7.51]
[1756453501639,7.53,209.09,209.02,7.51]
[1756453501840,7.53,209.15,209.06,7.60460405]
[1756453502041,7.53,209.21,209.1,7.51]
[1756453502234,74.4426,209.19,209.1,7.51]
[1756453502439,74.4426,209.19,209.06,102.05460405]
[1756453502742,74.4683,209.11,209.02,129.72]
[1756453503141,7.53,209.11,209.01,7.51]
[1756453504038,4.3029,209.13,209.01,15.11460405]
[1756453504244,7.53,209.14,209.02,7.51]
[1756453504446,7.53,209.14,209.02,137.21]
[1756453504942,11.8327,209.14,209.02,137.21]
[1756453505244,7.53,209.14,209.02,137.21]
[1756453505443,4.3029,209.12,209.04,7.60460405]
[1756453505844,7.53,209.14,209.04,7.60460405]
[1756453506239,4.3033,209.11,209.04,7.60460405]
[1756453506434,7.37,209.12,209.02,7.51]
[1756453507135,4.3039,209.08,209.02,7.51]
[1756453507748,4.3039,209.08,208.98,466.00460405]
[1756453507946,4.3039,209.08,208.98,336.36460405]
[1756453508146,4.3039,209.08,208.98,466.00460405]
[1756453509145,4.3041,209.06,208.98,458.4]
[1756453510448,4.3041,209.06,208.98,466.00460405]
[1756453511651,4.3045,209.05,208.98,328.76]
[1756453511851,4.3045,209.05,208.99,129.58]
[1756453512648,4.3045,209.05,208.98,328.76]
[1756453512848,4.3048,209.03,208.98,320.96]
[1756453513047,4.3048,209.03,208.98,450.52]
[1756453513346,4.3048,209.03,208.99,7.8]
[1756453513944,66.9574,209.05,208.93,7.60460405]
[1756453514148,66.9574,209.05,208.94,129.54]
[1756453514545,7.37,209.06,208.95,7.8]
[1756453514745,7.37,209.06,208.96,129.52]
[1756453515147,7.37,209.06,208.95,7.8]
[1756453515350,7.37,209.06,208.97,129.52]
[1756453515649,11.6741,209.06,208.97,7.60460405]
[1756453515845,11.6741,209.06,208.98,137.3]
[1756453516753,4.3037,209.09,208.98,137.3]
[1756453516949,66.9381,209.11,208.98,137.3]
[1756453517353,4.3042,209.06,208.98,137.3]
[1756453518258,11.6737,209.09,208.99,15.40460405]
[1756453518658,7.37,209.09,208.99,15.40460405]
[1756453518959,7.37,209.15,209.03,7.8]
[1756453519252,7.37,209.15,209.05,15.40460405]
[1756453519453,7.37,209.15,209.05,61.52460405]
[1756453519654,190.1979415,209.16,209.06,7.8]
[1756453519849,190.1979415,209.16,209.02,15.2]
[1756453519850,7.37,209.13,209.02,15.2]
[1756453520258,4.3036,209.09,209.02,15.2]
[1756453522156,4.3031,209.11,209.03,7.8]
[1756453522355,4.3031,209.11,209.02,7.4]
[1756453522356,4.3031,209.11,209.05,7.8]
[1756453522557,4.3036,209.09,209.05,7.8]
[1756453523254,4.304,209.07,208.93,7.8]
[1756453523463,66.9451,209.09,208.99,7.8]
[1756453523755,7.37,209.1,209.0,7.60460405]
[1756453523948,4.3037,209.08,209.01,7.8]
[1756453524152,66.9517,209.07,208.97,7.8]
[1756453524357,66.9575,209.05,208.97,7.8]
[1756453524556,74.3275,209.05,208.97,7.8]
[1756453525758,7.37,209.05,208.95,7.8]
[1756453525954,66.9672,209.02,208.95,7.8]
[1756453526157,7.37,209.01,208.92,321.32]
[1756453526560,4.3058,208.99,208.92,321.32]
[1756453527961,11.6752,209.01,208.93,7.8]
[1756453528366,74.3245,209.06,208.93,15.40460405]
[1756453528762,4.3048,209.03,208.93,7.60460405]
[1756453528963,4.3048,209.03,208.94,7.8]
[1756453529960,11.6744,209.06,208.94,7.8]
[1756453530962,4.3046,209.04,208.95,129.24]
[1756453531162,4.3046,209.04,208.96,7.8]
[1756453531363,11.6742,209.06,208.96,7.8]
[1756453531557,7.37,209.13,208.97,7.60460405]
[1756453531768,7.37,209.13,209.01,7.8]
[1756453532064,7.37,209.13,209.03,7.8]
[1756453532762,74.3153,209.09,208.98,129.2]
[1756453532968,7.37,209.09,208.98,129.2]
[1756453533669,4.3043,209.06,208.98,129.2]
[1756453534371,4.3038,209.08,208.99,7.8]
[1756453534771,4.3033,209.11,209.0,7.8]
[1756453535065,7.37,209.13,209.03,7.8]
[1756453535269,66.936,209.12,209.04,129.14]
[1756453535662,4.3036,209.09,209.04,129.14]
[1756453535862,4.3036,209.09,209.04,136.94]
[1756453536773,4.304,209.07,208.94,7.29]
[1756453536960,4.304,209.07,208.98,7.29]
[1756453537365,7.8,209.14,209.01,7.29]
[1756453537561,7.8,209.14,209.03,7.29]
[1756453538266,4.3032,209.11,209.03,7.29]
[1756453538468,7.8,209.18,209.04,7.29]
[1756453538669,7.8,209.18,209.07,7.29]
[1756453538870,7.8,209.18,209.07,87.41]
[1756453539369,7.8,209.18,209.08,7.29]
[1756453539871,66.8945,209.25,209.11,7.29]
[1756453540065,66.8945,209.25,209.14,7.29]
[1756453540265,66.8945,209.25,209.14,44.01]
[1756453540467,15.40460405,209.26,209.14,44.01]
[1756453541373,7.8,209.26,209.14,44.01]
[1756453541769,4.3007,209.23,209.14,44.01]
[1756453542475,4.3007,209.23,209.15,7.29]
[1756453543177,4.3011,209.21,209.15,7.29]
[1756453543374,4.3011,209.21,209.12,23.5]
[1756453543571,4.3011,209.21,209.11,7.29]
[1756453543774,4.3011,209.21,209.11,29.01]
[1756453544973,4.3011,209.21,209.11,7.29]
[1756453545173,66.9109,209.2,209.11,7.29]
[1756453545775,4.302,209.17,209.11,7.29]
[1756453546171,66.9231,209.16,209.04,93.04]
[1756453546375,4.3028,209.13,209.05,7.29]
[1756453546876,4.3023,209.16,209.05,7.29]
[1756453547083,7.8,209.17,209.06,7.29]
[1756453547276,7.8,209.22,209.06,7.29]
[1756453547780,4.3017,209.19,209.06,7.29]
[1756453547973,7.8,209.22,209.06,7.29]
[1756453548280,12.1011,209.22,209.1,7.29]
[1756453548476,7.8,209.26,209.1,7.29]
[1756453548968,7.8,209.26,209.07,7.8599109]
[1756453548969,4.3005,209.25,209.14,7.29]
[1756453549177,4.3005,209.25,209.16,7.29]
[1756453549577,7.8,209.31,209.18,7.29]
[1756453550077,4.2994,209.3,209.18,7.29]
[1756453552275,12.0982,209.36,209.23,11.72551004]
[1756453552577,12.0982,209.36,209.24,7.29]
[1756453552778,7.8,209.36,209.24,7.29]
[1756453552979,7.8,209.36,209.28,7.29]
[1756453554685,4.2983,209.35,209.28,7.29]
[1756453555386,4.2983,209.35,209.24,122.22]
[1756453555779,4.2983,209.35,209.23,19.01551004]
[1756453556075,4.2983,209.35,209.24,31.34]
[1756453556675,4.2983,209.35,209.23,19.01551004]
[1756453556875,4.2983,209.35,209.24,32.36]
[1756453557080,4.2983,209.35,209.23,19.01551004]
[1756453557281,4.2983,209.35,209.24,32.36]
[1756453557483,4.2983,209.35,209.23,19.01551004]
[1756453557785,4.2983,209.35,209.24,32.34]
[1756453557980,4.2983,209.35,209.23,19.01551004]
[1756453558287,4.2983,209.35,209.24,32.34]
[1756453558480,4.2983,209.35,209.23,19.01551004]
[1756453558986,4.2983,209.35,209.24,32.34]
[1756453559183,7.8,209.33,209.23,7.29]
[1756453560286,4.2991,209.31,209.23,7.29]
[1756453560587,7.8,209.33,209.23,7.29]
[1756453560886,4.2989,209.32,209.23,7.29]
[1756453561084,66.8847,209.28,209.16,7.29]
[1756453561283,7.8,209.27,209.16,7.29]
[1756453562583,7.8,209.32,209.16,7.29]
[1756453563980,12.0989,209.32,209.16,7.29]
[1756453564587,164.888,209.4,209.2,7.29]
[1756453564588,7.8,209.38,209.2,7.29]
[1756453564784,7.8,209.38,209.22,7.29]
[1756453565087,7.8,209.38,209.24,7.29]
[1756453568988,66.8659,209.34,209.24,7.29]
[1756453569192,7.76,209.33,209.19,7.56]
[1756453569684,4.2991,209.32,209.19,7.56]
[1756453570486,4.2993,209.3,209.19,7.56]
[1756453570893,12.0593,209.3,209.19,7.56]
[1756453572694,7.76,209.3,209.19,7.56]
[1756453573289,7.76,209.34,209.22,7.56]
[1756453573891,43.86,209.41,209.22,7.56]
[1756453573892,7.76,209.38,209.22,7.56]
[1756453574088,66.8542,209.38,209.23,44.0]
[1756453574292,7.76,209.37,209.23,44.0]
[1756453574694,7.76,209.37,209.24,7.56]
[1756453575494,4.2981,209.36,209.24,7.56]
[1756453576298,7.76,209.37,209.24,7.56]
[1756453576299,4.2985,209.34,209.24,7.56]
[1756453577300,7.76,209.35,209.24,7.56]
[1756453577502,7.76,209.35,209.25,7.56]
[1756453578897,12.0583,209.35,209.25,135.72]
[1756453579503,4.2971,209.41,209.27,11.72551004]
[1756453579803,4.2971,209.41,209.28,7.56]
[1756453580602,7.76,209.38,209.28,7.56]
[1756453584905,7.76,209.42,209.28,7.56]
[1756453586715,7.76,209.46,209.32,7.56]
[1756453586916,246.79168439,209.47,209.33,103.98]
[1756453587113,7.76,209.46,209.33,103.98]
[1756453587816,7.76,209.46,209.32,7.56]
[1756453588012,7.76,209.41,209.32,7.56]
[1756453588720,179.96688439,209.47,209.33,11.72551004]
[1756453589018,7.76,209.46,209.33,11.72551004]
[1756453589719,12.056,209.46,209.33,11.72551004]
[1756453590120,7.76,209.46,209.33,11.72551004]
[1756453590319,4.2964,209.45,209.33,11.72551004]
[1756453590519,4.2964,209.45,209.34,7.56]
[1756453590920,12.0566,209.44,209.34,7.56]
[1756453593219,7.76,209.39,209.3,19.28551004]
[1756453594017,7.76,209.4,209.3,11.72551004]
[1756453594820,4.2979,209.37,209.3,11.72551004]
[1756453595421,4.2979,209.37,209.31,7.61047992]
[1756453595822,4.2983,209.36,209.31,7.61047992]
[1756453596023,7.76,209.35,209.31,7.61047992]
[1756453596424,7.36,209.35,209.31,7.61047992]
[1756453597014,4.2976,209.39,209.31,7.61047992]
[1756453597218,11.6576,209.39,209.31,7.61047992]
[1756453597420,11.6576,209.39,209.29,7.59]
[1756453597815,7.36,209.39,209.29,7.59]
[1756453598016,7.36,209.39,209.32,7.59]
[1756453601125,4.2972,209.41,209.32,7.59]
[1756453604520,7.36,209.43,209.32,7.59]
[1756453606316,7.36,209.43,209.32,135.23]
[1756453606521,4.297,209.42,209.32,135.23]
[1756453609223,7.36,209.43,209.33,7.59]
[1756453610525,7.36,209.47,209.36,7.59]
[1756453612428,7.36,209.47,209.36,59.75]
[1756453613722,11.656,209.47,209.36,7.59]
[1756453613927,7.36,209.48,209.36,81.97]
[1756453614128,66.8203,209.49,209.36,81.97]
[1756453614724,7.36,209.48,209.36,81.97]
[1756453615027,4.2962,209.45,209.36,81.97]
[1756453615222,7.36,209.48,209.36,81.97]
[1756453615528,11.6558,209.48,209.36,81.97]
[1756453615723,11.6558,209.48,209.36,7.59]
[1756453615928,11.6558,209.48,209.36,102.45]
[1756453619432,11.6558,209.48,209.37,7.6050154]
[1756453619731,4.296,209.47,209.37,7.6050154]
[1756453620631,4.296,209.47,209.38,7.59]
[1756453621832,4.2962,209.46,209.38,7.59]
[1756453623130,4.2964,209.45,209.38,7.59]
[1756453624342,7.36,209.52,209.44,15.1950154]
[1756453624531,7.36,209.52,209.44,7.59]
[1756453625036,7.36,209.49,209.44,7.59]